[Event "7th Paul Keres Memorial Festival 2026 Classic A"]
[Site "ESTONIA Resort Hotel & Spa conference center, EE"]
[Date "2026.07.29"]
[Round "4"]
[White "Laurusas, Tomas"]
[Black "Ostensen, Nicolai Maxime"]
[Result "1/2-1/2"]
[Board "2"]
[TimeControl "5400+30"]
[WhiteFideId "12803731"]
[BlackFideId "1546970"]
[WhiteElo "2511"]
[BlackElo "2407"]
[WhiteTitle "GM"]
[BlackTitle "FM"]
[WhiteClock "0:02:43"]
[BlackClock "0:25:52"]
[Variant "Standard"]
[EndDate "2026.07.29"]
[EndTime "10:57:58"]

1. d4 {[%clk 1:30:58]}  Nf6 {[%clk 1:30:55]} 2. c4 {[%clk 1:31:24]}  g6 {[%clk 1:31:22]} 3. Nc3 {[%clk 1:31:20]}  Bg7 {[%clk 1:31:46]}
4. e4 {[%clk 1:31:45]}  d6 {[%clk 1:32:13]} 5. Nf3 {[%clk 1:32:10]}  O-O {[%clk 1:32:37]} 6. Be2 {[%clk 1:32:22]}  Nbd7 {[%clk 1:32:57]}
7. O-O {[%clk 1:21:36]}  e5 {[%clk 1:33:21]} 8. dxe5 {[%clk 1:14:56]}  dxe5 {[%clk 1:32:48]} 9. Be3 {[%clk 1:15:14]}  c6 {[%clk 1:31:28]}
10. Nd2 {[%clk 1:13:16]}  Qe7 {[%clk 1:28:59]} 11. Nb3 {[%clk 1:11:09]}  Rd8 {[%clk 1:28:22]} 12. Qc2 {[%clk 1:10:07]}  Nf8 {[%clk 1:25:34]}
13. Rfd1 {[%clk 1:10:14]}  Rxd1+ {[%clk 1:20:41]} 14. Rxd1 {[%clk 1:10:36]}  Ne6 {[%clk 1:20:19]} 15. c5 {[%clk 0:52:20]}  Nf4 {[%clk 1:13:39]}
16. f3 {[%clk 0:51:43]}  Nxe2+ {[%clk 1:10:50]} 17. Nxe2 {[%clk 0:42:01]}  Be6 {[%clk 1:10:52]} 18. Na5 {[%clk 0:42:20]}  Qc7 {[%clk 1:08:24]}
19. Nc4 {[%clk 0:41:11]}  Bxc4 {[%clk 1:07:39]} 20. Qxc4 {[%clk 0:41:39]}  Rd8 {[%clk 1:07:46]} 21. Rxd8+ {[%clk 0:38:49]}  Qxd8 {[%clk 1:08:09]}
22. Qb3 {[%clk 0:39:15]}  Qc7 {[%clk 1:06:26]} 23. Nc1 {[%clk 0:37:00]}  Nd7 {[%clk 1:06:19]} 24. Nd3 {[%clk 0:37:15]}  Nf8 {[%clk 1:03:12]}
25. Qa4 {[%clk 0:31:50]}  Qd7 {[%clk 1:02:47]} 26. Nf2 {[%clk 0:31:53]}  a6 {[%clk 1:03:06]} 27. Kf1 {[%clk 0:32:03]}  h5 {[%clk 1:02:36]}
28. Ke2 {[%clk 0:32:24]}  Kh7 {[%clk 1:01:10]} 29. Nd3 {[%clk 0:32:35]}  f6 {[%clk 1:00:43]} 30. h4 {[%clk 0:20:45]}  Ne6 {[%clk 0:59:15]}
31. g3 {[%clk 0:20:59]}  Bh6 {[%clk 0:58:45]} 32. Bf2 {[%clk 0:21:28]}  Kg7 {[%clk 0:55:07]} 33. Qc4 {[%clk 0:21:38]}  Qf7 {[%clk 0:54:29]}
34. b3 {[%clk 0:19:49]}  Qd7 {[%clk 0:54:43]} 35. Qc3 {[%clk 0:20:06]}  Kf7 {[%clk 0:52:27]} 36. Nb2 {[%clk 0:19:18]}  Bf8 {[%clk 0:52:36]}
37. Be3 {[%clk 0:19:18]}  Qe7 {[%clk 0:52:42]} 38. b4 {[%clk 0:18:26]}  Nc7 {[%clk 0:51:20]} 39. Qb3+ {[%clk 0:16:31]}  Qe6 {[%clk 0:47:56]}
40. Nc4 {[%clk 0:16:54]}  Ke8 {[%clk 0:47:24]} 41. Na5 {[%clk 0:15:48]}  Qxb3 {[%clk 0:47:09]} 42. axb3 {[%clk 0:12:17]}  Kd7 {[%clk 0:43:48]}
43. Nxb7 {[%clk 0:12:39]}  f5 {[%clk 0:41:09]} 44. Kd3 {[%clk 0:09:14]}  Be7 {[%clk 0:40:39]} 45. Na5 {[%clk 0:09:16]}  Bf6 {[%clk 0:38:29]}
46. f4 {[%clk 0:03:08]}  Ne6 {[%clk 0:35:46]} 47. exf5 {[%clk 0:03:04]}  gxf5 {[%clk 0:36:10]} 48. fxe5 {[%clk 0:03:32]}  Bxe5 {[%clk 0:36:33]}
49. Bf2 {[%clk 0:03:57]}  Bc7 {[%clk 0:35:21]} 50. Nc4 {[%clk 0:04:09]}  Ke7 {[%clk 0:34:25]} 51. Ke3 {[%clk 0:03:30]}  Kf6 {[%clk 0:32:54]}
52. Kf3 {[%clk 0:03:56]}  Nf8 {[%clk 0:32:44]} 53. Bd4+ {[%clk 0:00:53]}  Ke6 {[%clk 0:33:00]} 54. Ne3 {[%clk 0:01:00]}  Ng6 {[%clk 0:32:45]}
55. Ng2 {[%clk 0:01:29]}  Kd5 {[%clk 0:32:09]} 56. Bc3 {[%clk 0:01:42]}  Bb8 {[%clk 0:31:50]} 57. Ne3+ {[%clk 0:01:46]}  Ke6 {[%clk 0:32:15]}
58. Bg7 {[%clk 0:01:27]}  f4 {[%clk 0:30:51]} 59. gxf4 {[%clk 0:01:37]}  Bxf4 {[%clk 0:31:17]} 60. Ng2 {[%clk 0:00:33]}  Bd2 {[%clk 0:30:48]}
61. Ke4 {[%clk 0:01:03]}  Bxb4 {[%clk 0:30:32]} 62. Bd4 {[%clk 0:01:30]}  Ba5 {[%clk 0:30:02]} 63. Bf2 {[%clk 0:01:54]}  Bd8 {[%clk 0:30:18]}
64. Bg3 {[%clk 0:01:58]}  Bf6 {[%clk 0:29:51]} 65. Be1 {[%clk 0:02:23]}  Be7 {[%clk 0:29:23]} 66. Bf2 {[%clk 0:02:52]}  a5 {[%clk 0:26:27]}
67. Be1 {[%clk 0:02:23]}  Bf6 {[%clk 0:25:09]} 68. Bg3 {[%clk 0:01:56]}  Be7 {[%clk 0:25:26]} 69. Be1 {[%clk 0:02:19]}  Bxc5 {[%clk 0:25:49]}
70. Bxa5 {[%clk 0:02:43]}  Be7 {[%clk 0:25:52]} 1/2-1/2

[Event "7th Paul Keres Memorial Festival 2026 Classic A"]
[Site "ESTONIA Resort Hotel & Spa conference center, EE"]
[Date "2026.07.29"]
[Round "4"]
[White "Lagarde, Maxime"]
[Black "Maltsevskaya, Aleksandra"]
[Result "1/2-1/2"]
[Board "3"]
[TimeControl "5400+30"]
[WhiteFideId "662399"]
[BlackFideId "24174041"]
[WhiteElo "2622"]
[BlackElo "2360"]
[WhiteTitle "GM"]
[BlackTitle "IM"]
[WhiteClock "0:01:57"]
[BlackClock "0:01:36"]
[Variant "Standard"]
[EndDate "2026.07.29"]
[EndTime "11:24:35"]

1. e4 {[%clk 1:27:49]}  c5 {[%clk 1:30:37]} 2. Nf3 {[%clk 1:28:09]}  d6 {[%clk 1:30:58]} 3. Bc4 {[%clk 1:26:13]}  Nc6 {[%clk 1:29:44]}
4. O-O {[%clk 1:25:43]}  Nf6 {[%clk 1:29:43]} 5. d3 {[%clk 1:25:33]}  g6 {[%clk 1:26:00]} 6. c3 {[%clk 1:24:51]}  Bg7 {[%clk 1:26:05]}
7. Re1 {[%clk 1:25:11]}  O-O {[%clk 1:26:16]} 8. a4 {[%clk 1:25:16]}  d5 {[%clk 1:08:24]} 9. exd5 {[%clk 1:25:07]}  Nxd5 {[%clk 1:08:48]}
10. a5 {[%clk 1:11:08]}  Bg4 {[%clk 0:58:19]} 11. Nbd2 {[%clk 1:00:18]}  e6 {[%clk 0:51:59]} 12. Qa4 {[%clk 0:53:59]}  Bxf3 {[%clk 0:48:41]}
13. Nxf3 {[%clk 0:54:19]}  Qc7 {[%clk 0:47:03]} 14. Qa3 {[%clk 0:32:11]}  Ne5 {[%clk 0:41:52]} 15. Nxe5 {[%clk 0:32:22]}  Bxe5 {[%clk 0:42:16]}
16. g3 {[%clk 0:32:33]}  Rac8 {[%clk 0:42:07]} 17. Qb3 {[%clk 0:30:51]}  Rfd8 {[%clk 0:39:15]} 18. Bg5 {[%clk 0:29:27]}  Bf6 {[%clk 0:39:38]}
19. h4 {[%clk 0:25:36]}  Kg7 {[%clk 0:37:33]} 20. Qd1 {[%clk 0:23:47]}  h6 {[%clk 0:33:45]} 21. Bd2 {[%clk 0:22:39]}  Qc6 {[%clk 0:27:40]}
22. Qf3 {[%clk 0:21:41]}  Rd7 {[%clk 0:24:08]} 23. Re4 {[%clk 0:13:22]}  b5 {[%clk 0:21:23]} 24. axb6 {[%clk 0:13:19]}  axb6 {[%clk 0:21:43]}
25. Bxd5 {[%clk 0:08:13]}  exd5 {[%clk 0:12:38]} 26. Rf4 {[%clk 0:07:27]}  Be5 {[%clk 0:11:31]} 27. Rfa4 {[%clk 0:07:49]}  Re8 {[%clk 0:11:24]}
28. Ra7 {[%clk 0:05:46]}  Bb8 {[%clk 0:07:43]} 29. Ra8 {[%clk 0:05:38]}  Rde7 {[%clk 0:07:56]} 30. Bxh6+ {[%clk 0:03:59]}  Kxh6 {[%clk 0:06:38]}
31. Rxb8 {[%clk 0:04:26]}  Rxb8 {[%clk 0:07:03]} 32. Qf4+ {[%clk 0:04:54]}  Kh7 {[%clk 0:05:49]} 33. Qxb8 {[%clk 0:05:19]}  Qf6 {[%clk 0:06:13]}
34. Ra8 {[%clk 0:02:38]}  Re2 {[%clk 0:00:36]} 35. Qg8+ {[%clk 0:01:24]}  Kh6 {[%clk 0:01:01]} 36. Qh8+ {[%clk 0:01:31]}  Qxh8 {[%clk 0:01:25]}
37. Rxh8+ {[%clk 0:01:59]}  Kg7 {[%clk 0:01:48]} 38. Rd8 {[%clk 0:02:27]}  d4 {[%clk 0:01:31]} 39. cxd4 {[%clk 0:02:52]}  Rxb2 {[%clk 0:01:57]}
40. dxc5 {[%clk 0:03:04]}  bxc5 {[%clk 0:02:22]} 41. Kg2 {[%clk 0:02:59]}  Rc2 {[%clk 0:02:42]} 42. Kf3 {[%clk 0:03:12]}  c4 {[%clk 0:03:05]}
43. d4 {[%clk 0:03:26]}  Kf6 {[%clk 0:00:34]} 44. Rc8 {[%clk 0:02:42]}  Ke6 {[%clk 0:00:45]} 45. Rc5 {[%clk 0:02:30]}  Kd6 {[%clk 0:00:34]}
46. h5 {[%clk 0:02:04]}  gxh5 {[%clk 0:00:33]} 47. Rxh5 {[%clk 0:02:30]}  Rd2 {[%clk 0:00:34]} 48. Ke3 {[%clk 0:02:53]}  Rd3+ {[%clk 0:00:48]}
49. Ke4 {[%clk 0:03:16]}  Rd2 {[%clk 0:01:02]} 50. Rh6+ {[%clk 0:02:48]}  Kd7 {[%clk 0:00:35]} 51. Rf6 {[%clk 0:02:59]}  c3 {[%clk 0:00:33]}
52. Rxf7+ {[%clk 0:03:07]}  Kd8 {[%clk 0:00:57]} 53. Rf8+ {[%clk 0:02:56]}  Kd7 {[%clk 0:01:22]} 54. Rf7+ {[%clk 0:02:18]}  Kd6 {[%clk 0:00:35]}
55. Rf6+ {[%clk 0:02:38]}  Kd7 {[%clk 0:01:00]} 56. Rf3 {[%clk 0:01:07]}  c2 {[%clk 0:01:24]} 57. Rc3 {[%clk 0:01:34]}  Rxf2 {[%clk 0:01:48]}
58. g4 {[%clk 0:01:58]}  Rg2 {[%clk 0:02:03]} 59. Kf5 {[%clk 0:02:14]}  Kd6 {[%clk 0:00:33]} 60. Rc5 {[%clk 0:02:23]}  Rf2+ {[%clk 0:00:31]}
61. Kg6 {[%clk 0:02:33]}  Rg2 {[%clk 0:00:32]} 62. g5 {[%clk 0:02:55]}  Re2 {[%clk 0:00:32]} 63. Kh6 {[%clk 0:02:29]}  Rh2 {[%clk 0:00:43]}
64. Kg7 {[%clk 0:02:49]}  Re2 {[%clk 0:00:57]} 65. Kf6 {[%clk 0:01:35]}  Rf2 {[%clk 0:01:11]} 66. Kg6 {[%clk 0:02:00]}  Re2 {[%clk 0:01:36]}
67. Kf5 {[%clk 0:01:19]}  Rf2+ {[%clk 0:01:21]} 68. Kg4 {[%clk 0:01:19]}  Rd2 {[%clk 0:01:12]} 69. Kh5 {[%clk 0:01:29]}  Rh2+ {[%clk 0:01:36]}
70. Kg6 {[%clk 0:01:57]} 1/2-1/2

[Event "7th Paul Keres Memorial Festival 2026 Classic A"]
[Site "ESTONIA Resort Hotel & Spa conference center, EE"]
[Date "2026.07.29"]
[Round "4"]
[White "Zeng, Chongsheng"]
[Black "Kirk, Ezra"]
[Result "1-0"]
[Board "4"]
[TimeControl "5400+30"]
[WhiteFideId "8603847"]
[BlackFideId "600067"]
[WhiteElo "2565"]
[BlackElo "2378"]
[WhiteTitle "GM"]
[BlackTitle "IM"]
[WhiteClock "0:39:17"]
[BlackClock "0:04:16"]
[Variant "Standard"]
[EndDate "2026.07.29"]
[EndTime "10:16:57"]

1. e4 {[%clk 1:28:25]}  e6 {[%clk 1:30:07]} 2. d4 {[%clk 1:28:33]}  d5 {[%clk 1:30:31]} 3. Nd2 {[%clk 1:28:49]}  c5 {[%clk 1:29:26]}
4. Ngf3 {[%clk 1:29:13]}  Nc6 {[%clk 1:26:19]} 5. exd5 {[%clk 1:29:21]}  exd5 {[%clk 1:26:04]} 6. Bb5 {[%clk 1:29:26]}  Bd6 {[%clk 1:22:28]}
7. dxc5 {[%clk 1:27:46]}  Bxc5 {[%clk 1:22:51]} 8. O-O {[%clk 1:28:12]}  Nge7 {[%clk 1:22:25]} 9. Nb3 {[%clk 1:28:27]}  Bb6 {[%clk 1:18:26]}
10. Re1 {[%clk 1:24:39]}  O-O {[%clk 1:14:39]} 11. Be3 {[%clk 1:20:33]}  Bg4 {[%clk 1:11:23]} 12. Bxb6 {[%clk 1:24:35]}  Qxb6 {[%clk 1:11:24]}
13. Bxc6 {[%clk 1:24:56]}  Nxc6 {[%clk 1:11:49]} 14. Qxd5 {[%clk 1:24:53]}  Nb4 {[%clk 1:08:26]} 15. Qe4 {[%clk 1:24:54]}  Bxf3 {[%clk 1:08:13]}
16. gxf3 {[%clk 1:25:22]}  Rac8 {[%clk 0:59:52]} 17. c3 {[%clk 1:17:25]}  Nc6 {[%clk 0:56:10]} 18. Rad1 {[%clk 1:17:36]}  Rcd8 {[%clk 0:51:23]}
19. f4 {[%clk 1:14:09]}  h6 {[%clk 0:43:09]} 20. f5 {[%clk 1:10:54]}  Rxd1 {[%clk 0:31:01]} 21. Rxd1 {[%clk 1:11:22]}  Rd8 {[%clk 0:30:28]}
22. Rxd8+ {[%clk 1:04:42]}  Qxd8 {[%clk 0:30:40]} 23. h4 {[%clk 1:04:50]}  Qd6 {[%clk 0:21:36]} 24. Kg2 {[%clk 0:59:20]}  Kh7 {[%clk 0:18:15]}
25. Nd4 {[%clk 0:56:32]}  Nxd4 {[%clk 0:17:08]} 26. cxd4 {[%clk 0:56:58]}  f6 {[%clk 0:15:30]} 27. a3 {[%clk 0:54:18]}  a5 {[%clk 0:13:46]}
28. d5 {[%clk 0:53:02]}  a4 {[%clk 0:11:07]} 29. Kf3 {[%clk 0:51:25]}  Qb6 {[%clk 0:08:07]} 30. Qb4 {[%clk 0:49:06]}  Qa6 {[%clk 0:07:54]}
31. Ke3 {[%clk 0:45:26]}  Kg8 {[%clk 0:06:07]} 32. d6 {[%clk 0:44:53]}  Qc6 {[%clk 0:04:26]} 33. Qd4 {[%clk 0:44:49]}  Qc1+ {[%clk 0:03:32]}
34. Ke2 {[%clk 0:42:47]}  Qc2+ {[%clk 0:03:55]} 35. Kf1 {[%clk 0:41:12]}  Qc1+ {[%clk 0:04:05]} 36. Kg2 {[%clk 0:41:27]}  Qc6+ {[%clk 0:04:28]}
37. Kg3 {[%clk 0:39:14]}  Kf8 {[%clk 0:03:51]} 38. d7 {[%clk 0:39:29]}  Qc7+ {[%clk 0:04:14]} 39. Kg4 {[%clk 0:39:36]}  Ke7 {[%clk 0:04:16]}
40. Kh5 {[%clk 0:39:17]} 1-0

[Event "7th Paul Keres Memorial Festival 2026 Classic A"]
[Site "ESTONIA Resort Hotel & Spa conference center, EE"]
[Date "2026.07.29"]
[Round "4"]
[White "Povilaitis, Tomas"]
[Black "Harikrishnan.A.Ra"]
[Result "0-1"]
[Board "5"]
[TimeControl "5400+30"]
[WhiteFideId "12811700"]
[BlackFideId "5081483"]
[WhiteElo "2150"]
[BlackElo "2519"]
[BlackTitle "GM"]
[WhiteClock "0:02:40"]
[BlackClock "0:05:06"]
[Variant "Standard"]
[EndDate "2026.07.29"]
[EndTime "10:58:36"]

1. e4 {[%clk 1:30:59]}  e6 {[%clk 1:27:12]} 2. d4 {[%clk 1:31:21]}  d5 {[%clk 1:27:30]} 3. Nc3 {[%clk 1:31:43]}  Nf6 {[%clk 1:27:52]}
4. Bg5 {[%clk 1:32:04]}  dxe4 {[%clk 1:28:16]} 5. Nxe4 {[%clk 1:32:29]}  Nbd7 {[%clk 1:28:42]} 6. Nf3 {[%clk 1:32:48]}  h6 {[%clk 1:29:06]}
7. Nxf6+ {[%clk 1:33:11]}  Nxf6 {[%clk 1:29:29]} 8. Bh4 {[%clk 1:33:35]}  c5 {[%clk 1:29:13]} 9. Bb5+ {[%clk 1:33:42]}  Bd7 {[%clk 1:29:18]}
10. Bxd7+ {[%clk 1:34:06]}  Qxd7 {[%clk 1:29:44]} 11. Qe2 {[%clk 1:34:25]}  cxd4 {[%clk 1:19:48]} 12. O-O-O {[%clk 1:33:36]}  Bc5 {[%clk 1:17:01]}
13. Nxd4 {[%clk 1:33:03]}  Bxd4 {[%clk 1:14:58]} 14. c3 {[%clk 1:33:24]}  Rc8 {[%clk 1:13:32]} 15. Kb1 {[%clk 1:33:34]}  Qc6 {[%clk 1:12:14]}
16. Rxd4 {[%clk 1:15:17]}  Qxg2 {[%clk 1:12:25]} 17. Qb5+ {[%clk 1:13:49]}  Rc6 {[%clk 0:57:45]} 18. Rhd1 {[%clk 1:04:22]}  O-O {[%clk 0:58:06]}
19. Qxb7 {[%clk 1:00:51]}  Ne4 {[%clk 0:43:54]} 20. Ka1 {[%clk 0:34:05]}  Nc5 {[%clk 0:41:12]} 21. Qe7 {[%clk 0:30:00]}  Rfc8 {[%clk 0:39:07]}
22. Bg3 {[%clk 0:27:23]}  Qf3 {[%clk 0:37:34]} 23. Rg1 {[%clk 0:25:54]}  Ra6 {[%clk 0:33:23]} 24. Rb4 {[%clk 0:13:58]}  Qd5 {[%clk 0:25:14]}
25. a3 {[%clk 0:14:27]}  Qf5 {[%clk 0:14:15]} 26. Bh4 {[%clk 0:11:48]}  Kh8 {[%clk 0:08:56]} 27. Ka2 {[%clk 0:06:34]}  Qd5+ {[%clk 0:06:47]}
28. Ka1 {[%clk 0:07:03]}  Qf5 {[%clk 0:06:25]} 29. Ka2 {[%clk 0:07:23]}  Nd3 {[%clk 0:05:06]} 30. Rbg4 {[%clk 0:07:49]}  Qd5+ {[%clk 0:04:27]}
31. c4 {[%clk 0:04:33]}  Qe5 {[%clk 0:04:53]} 32. Rb1 {[%clk 0:03:12]}  Rb8 {[%clk 0:04:21]} 33. Bg3 {[%clk 0:02:11]}  Rxb2+ {[%clk 0:04:43]}
34. Ka1 {[%clk 0:02:40]}  Rxb1+ {[%clk 0:05:06]} 0-1

[Event "7th Paul Keres Memorial Festival 2026 Classic A"]
[Site "ESTONIA Resort Hotel & Spa conference center, EE"]
[Date "2026.07.29"]
[Round "4"]
[White "Grave, Jacob Templen"]
[Black "Haitin, Ilja"]
[Result "1/2-1/2"]
[Board "6"]
[TimeControl "5400+30"]
[WhiteFideId "1542656"]
[BlackFideId "4501764"]
[WhiteElo "2392"]
[BlackElo "2273"]
[WhiteTitle "FM"]
[BlackTitle "FM"]
[WhiteClock "0:00:36"]
[BlackClock "0:02:34"]
[Variant "Standard"]
[EndDate "2026.07.29"]
[EndTime "11:33:31"]

1. e4 {[%clk 1:30:18]}  e5 {[%clk 1:30:56]} 2. Nf3 {[%clk 1:30:26]}  Nf6 {[%clk 1:31:22]} 3. Nxe5 {[%clk 1:29:53]}  d6 {[%clk 1:31:47]}
4. Nf3 {[%clk 1:30:18]}  Nxe4 {[%clk 1:32:14]} 5. d4 {[%clk 1:30:34]}  d5 {[%clk 1:32:38]} 6. Bd3 {[%clk 1:30:48]}  Bf5 {[%clk 1:33:03]}
7. O-O {[%clk 1:30:15]}  Be7 {[%clk 1:33:30]} 8. Re1 {[%clk 1:29:08]}  Nc6 {[%clk 1:33:56]} 9. Nbd2 {[%clk 1:26:49]}  Nxd2 {[%clk 1:34:14]}
10. Qxd2 {[%clk 1:26:56]}  Bxd3 {[%clk 1:34:22]} 11. Qxd3 {[%clk 1:27:20]}  O-O {[%clk 1:34:42]} 12. c3 {[%clk 1:18:12]}  Qd7 {[%clk 1:31:31]}
13. Bf4 {[%clk 1:13:01]}  a6 {[%clk 1:30:34]} 14. Re2 {[%clk 1:08:25]}  Rae8 {[%clk 1:28:16]} 15. Rae1 {[%clk 1:07:45]}  Bd8 {[%clk 1:27:39]}
16. h4 {[%clk 0:50:27]}  Rxe2 {[%clk 1:25:30]} 17. Qxe2 {[%clk 0:47:46]}  f6 {[%clk 1:25:41]} 18. Nd2 {[%clk 0:46:09]}  a5 {[%clk 1:20:37]}
19. Qb5 {[%clk 0:44:32]}  Ne5 {[%clk 1:16:24]} 20. Qe2 {[%clk 0:43:16]}  Nc6 {[%clk 1:16:31]} 21. Nf1 {[%clk 0:40:59]}  Ne7 {[%clk 1:09:23]}
22. h5 {[%clk 0:31:30]}  Kf7 {[%clk 1:01:21]} 23. Qf3 {[%clk 0:28:40]}  Re8 {[%clk 0:55:25]} 24. Ng3 {[%clk 0:23:14]}  c6 {[%clk 0:50:36]}
25. Qd3 {[%clk 0:22:07]}  g6 {[%clk 0:45:12]} 26. f3 {[%clk 0:20:09]}  Nf5 {[%clk 0:43:09]} 27. Rxe8 {[%clk 0:19:45]}  Kxe8 {[%clk 0:43:13]}
28. Nxf5 {[%clk 0:18:59]}  Qxf5 {[%clk 0:42:52]} 29. Qxf5 {[%clk 0:18:45]}  gxf5 {[%clk 0:43:20]} 30. a4 {[%clk 0:18:31]}  b5 {[%clk 0:37:33]}
31. b3 {[%clk 0:17:43]}  bxa4 {[%clk 0:37:50]} 32. bxa4 {[%clk 0:18:08]}  Kf7 {[%clk 0:38:15]} 33. Kf2 {[%clk 0:16:17]}  Ke6 {[%clk 0:27:18]}
34. Ke2 {[%clk 0:15:12]}  Kf7 {[%clk 0:27:36]} 35. Kd3 {[%clk 0:15:22]}  Ke6 {[%clk 0:13:04]} 36. c4 {[%clk 0:14:41]}  Kd7 {[%clk 0:07:07]}
37. c5 {[%clk 0:13:12]}  Be7 {[%clk 0:07:22]} 38. Ke3 {[%clk 0:11:31]}  Bf8 {[%clk 0:07:16]} 39. Kf2 {[%clk 0:11:22]}  Kc8 {[%clk 0:05:06]}
40. Bd2 {[%clk 0:10:56]}  Bg7 {[%clk 0:02:17]} 41. Ke2 {[%clk 0:04:01]}  Bf8 {[%clk 0:00:55]} 42. Bxa5 {[%clk 0:03:56]}  Bh6 {[%clk 0:01:23]}
43. Be1 {[%clk 0:02:14]}  Kb7 {[%clk 0:00:10]} 44. Ba5 {[%clk 0:00:44]}  f4 {[%clk 0:00:32]} 45. Bd8 {[%clk 0:00:54]}  f5 {[%clk 0:00:39]}
46. Kd3 {[%clk 0:00:54]}  Ka6 {[%clk 0:00:56]} 47. Kc3 {[%clk 0:00:55]}  Kb7 {[%clk 0:01:00]} 48. Bf6 {[%clk 0:01:03]}  Ka6 {[%clk 0:01:14]}
49. Kb4 {[%clk 0:01:05]}  Kb7 {[%clk 0:01:24]} 50. Be5 {[%clk 0:00:58]}  Ka6 {[%clk 0:01:28]} 51. Kb3 {[%clk 0:00:36]}  Ka5 {[%clk 0:01:44]}
52. Bc7+ {[%clk 0:01:00]}  Ka6 {[%clk 0:02:14]} 53. Bd8 {[%clk 0:01:06]}  Kb7 {[%clk 0:02:38]} 54. Ba5 {[%clk 0:00:43]}  Bg7 {[%clk 0:01:09]}
55. Bc3 {[%clk 0:00:56]}  Bf6 {[%clk 0:01:32]} 56. Kc2 {[%clk 0:00:53]}  Bh4 {[%clk 0:01:28]} 57. Kd3 {[%clk 0:00:40]}  Bg3 {[%clk 0:01:41]}
58. Ba5 {[%clk 0:00:44]}  Ka6 {[%clk 0:01:56]} 59. Bd8 {[%clk 0:01:01]}  Kb7 {[%clk 0:01:42]} 60. Bf6 {[%clk 0:00:57]}  Ka6 {[%clk 0:01:58]}
61. Kc2 {[%clk 0:01:10]}  Ka5 {[%clk 0:02:12]} 62. Kb3 {[%clk 0:01:35]}  Ka6 {[%clk 0:02:37]} 63. Be5 {[%clk 0:00:36]}  Bh2 {[%clk 0:02:09]}
64. Bf6 {[%clk 0:00:36]}  Bg3 {[%clk 0:02:34]} 1/2-1/2

[Event "7th Paul Keres Memorial Festival 2026 Classic A"]
[Site "ESTONIA Resort Hotel & Spa conference center, EE"]
[Date "2026.07.29"]
[Round "4"]
[White "Fecker, Noah"]
[Black "Viskelis, Darius"]
[Result "1-0"]
[Board "7"]
[TimeControl "5400+30"]
[WhiteFideId "1334263"]
[BlackFideId "12800830"]
[WhiteElo "2371"]
[BlackElo "2114"]
[WhiteTitle "FM"]
[BlackTitle "FM"]
[WhiteClock "0:28:04"]
[BlackClock "0:11:28"]
[Variant "Standard"]
[EndDate "2026.07.29"]
[EndTime "10:07:45"]

1. e4 {[%clk 1:30:58]}  e5 {[%clk 1:29:24]} 2. Nf3 {[%clk 1:31:19]}  Nf6 {[%clk 1:29:46]} 3. Nxe5 {[%clk 1:31:13]}  d6 {[%clk 1:30:08]}
4. Nf3 {[%clk 1:31:38]}  Nxe4 {[%clk 1:30:30]} 5. d4 {[%clk 1:31:39]}  d5 {[%clk 1:30:43]} 6. Bd3 {[%clk 1:31:43]}  Be7 {[%clk 1:29:17]}
7. O-O {[%clk 1:28:31]}  O-O {[%clk 1:29:27]} 8. Re1 {[%clk 1:22:01]}  Nd6 {[%clk 1:27:15]} 9. Bf4 {[%clk 1:18:25]}  Bg4 {[%clk 1:25:08]}
10. Nbd2 {[%clk 1:16:38]}  Nc6 {[%clk 1:16:07]} 11. h3 {[%clk 1:12:03]}  Bh5 {[%clk 1:15:13]} 12. c3 {[%clk 1:11:38]}  Bg6 {[%clk 1:08:10]}
13. Bxg6 {[%clk 1:07:27]}  fxg6 {[%clk 1:08:32]} 14. Bh2 {[%clk 1:06:38]}  Bf6 {[%clk 0:57:57]} 15. Qb3 {[%clk 1:01:55]}  Ne7 {[%clk 0:54:35]}
16. Bxd6 {[%clk 1:00:38]}  Qxd6 {[%clk 0:52:45]} 17. Ne4 {[%clk 0:59:00]}  Qd8 {[%clk 0:49:53]} 18. Re2 {[%clk 0:49:32]}  Nf5 {[%clk 0:42:13]}
19. Nc5 {[%clk 0:46:01]}  c6 {[%clk 0:24:52]} 20. Nxb7 {[%clk 0:37:24]}  Qc8 {[%clk 0:25:14]} 21. Nc5 {[%clk 0:37:04]}  h6 {[%clk 0:17:04]}
22. Qb7 {[%clk 0:32:12]}  Qxb7 {[%clk 0:15:33]} 23. Nxb7 {[%clk 0:32:35]}  Rfe8 {[%clk 0:14:27]} 24. Rae1 {[%clk 0:31:32]}  Rxe2 {[%clk 0:14:55]}
25. Rxe2 {[%clk 0:31:57]}  Rb8 {[%clk 0:14:45]} 26. Na5 {[%clk 0:29:11]}  c5 {[%clk 0:12:05]} 27. dxc5 {[%clk 0:28:20]}  Rb5 {[%clk 0:12:28]}
28. Nb3 {[%clk 0:27:36]}  a5 {[%clk 0:12:37]} 29. Re8+ {[%clk 0:27:30]}  Kf7 {[%clk 0:12:53]} 30. Ra8 {[%clk 0:27:53]}  Ke6 {[%clk 0:11:28]}
31. g4 {[%clk 0:28:04]} 1-0

[Event "7th Paul Keres Memorial Festival 2026 Classic A"]
[Site "ESTONIA Resort Hotel & Spa conference center, EE"]
[Date "2026.07.29"]
[Round "4"]
[White "Kreken, Eivind Grunt"]
[Black "Dijokas, Jokubas"]
[Result "1-0"]
[Board "8"]
[TimeControl "5400+30"]
[WhiteFideId "1532359"]
[BlackFideId "12840653"]
[WhiteElo "2335"]
[BlackElo "2077"]
[WhiteTitle "FM"]
[WhiteClock "0:02:11"]
[BlackClock "0:00:59"]
[Variant "Standard"]
[EndDate "2026.07.29"]
[EndTime "10:57:11"]

1. e4 {[%clk 1:30:12]}  c6 {[%clk 1:30:52]} 2. d4 {[%clk 1:30:11]}  d5 {[%clk 1:31:12]} 3. exd5 {[%clk 1:30:21]}  cxd5 {[%clk 1:31:38]}
4. Nf3 {[%clk 1:30:36]}  Nf6 {[%clk 1:29:47]} 5. c3 {[%clk 1:28:00]}  Nc6 {[%clk 1:27:14]} 6. Ne5 {[%clk 1:28:04]}  e6 {[%clk 1:25:16]}
7. Nd2 {[%clk 1:27:47]}  Nxe5 {[%clk 1:25:14]} 8. dxe5 {[%clk 1:28:04]}  Nd7 {[%clk 1:25:16]} 9. Nf3 {[%clk 1:24:32]}  Be7 {[%clk 1:20:20]}
10. Bd3 {[%clk 1:23:44]}  Qc7 {[%clk 1:11:25]} 11. Bf4 {[%clk 1:19:18]}  Nc5 {[%clk 0:48:26]} 12. Bc2 {[%clk 1:13:48]}  Bd7 {[%clk 0:46:37]}
13. O-O {[%clk 1:04:35]}  h6 {[%clk 0:42:06]} 14. Nd4 {[%clk 0:57:36]}  g5 {[%clk 0:38:23]} 15. Bg3 {[%clk 0:56:45]}  h5 {[%clk 0:36:58]}
16. h3 {[%clk 0:49:33]}  O-O-O {[%clk 0:28:55]} 17. Qe2 {[%clk 0:41:10]}  Bc6 {[%clk 0:14:15]} 18. Rfe1 {[%clk 0:37:50]}  Ne4 {[%clk 0:12:37]}
19. Bh2 {[%clk 0:31:26]}  h4 {[%clk 0:11:44]} 20. Rad1 {[%clk 0:29:55]}  Bc5 {[%clk 0:09:23]} 21. Qf3 {[%clk 0:27:51]}  Rhf8 {[%clk 0:06:53]}
22. b4 {[%clk 0:25:08]}  Bxd4 {[%clk 0:06:12]} 23. cxd4 {[%clk 0:22:57]}  a5 {[%clk 0:04:03]} 24. a3 {[%clk 0:21:03]}  Kb8 {[%clk 0:03:05]}
25. Qe3 {[%clk 0:20:20]}  Rg8 {[%clk 0:01:42]} 26. Bd3 {[%clk 0:18:50]}  axb4 {[%clk 0:00:42]} 27. axb4 {[%clk 0:19:09]}  Qb6 {[%clk 0:00:34]}
28. b5 {[%clk 0:17:23]}  Bd7 {[%clk 0:00:40]} 29. Ra1 {[%clk 0:15:01]}  Rc8 {[%clk 0:00:37]} 30. Ra3 {[%clk 0:14:39]}  Rc3 {[%clk 0:00:38]}
31. Rxc3 {[%clk 0:11:55]}  Nxc3 {[%clk 0:01:05]} 32. Bf1 {[%clk 0:09:44]}  Rc8 {[%clk 0:00:48]} 33. Rc1 {[%clk 0:05:51]}  Nxb5 {[%clk 0:00:44]}
34. Rb1 {[%clk 0:06:17]}  Qc6 {[%clk 0:00:32]} 35. Bxb5 {[%clk 0:06:07]}  Qb6 {[%clk 0:00:31]} 36. Bd3 {[%clk 0:05:30]}  Qa5 {[%clk 0:00:35]}
37. Qxg5 {[%clk 0:04:28]}  Rc3 {[%clk 0:00:36]} 38. Qd2 {[%clk 0:04:00]}  Qa3 {[%clk 0:00:44]} 39. Bf1 {[%clk 0:03:37]}  Ba4 {[%clk 0:00:38]}
40. Bf4 {[%clk 0:03:36]}  Rc2 {[%clk 0:00:46]} 41. Qa5 {[%clk 0:03:07]}  Qa2 {[%clk 0:00:40]} 42. Rb4 {[%clk 0:02:19]}  Bc6 {[%clk 0:00:33]}
43. Qxa2 {[%clk 0:02:04]}  Rxa2 {[%clk 0:00:59]} 44. Bb5 {[%clk 0:02:11]} 1-0